fUSD/lending_fUSD_20240518
["ID","MTS","AMOUNT","RATE_DAILY","PERIOD"]
[327379334,1716030642406,-500.0,0.00035616,9]
[327379335,1716030642418,-500.0,0.00035616,9]
[327379336,1716030642428,-500.0,0.00035616,9]
[327379337,1716030642437,-578.35,0.00035616,9]
[327379338,1716030642446,-500.0,0.00035616,9]
[327379339,1716030642457,-500.0,0.00035616,9]
[327379340,1716030642466,-500.0,0.00035616,9]
[327379341,1716030642476,-500.0,0.00035616,9]
[327379342,1716030642486,-547.39,0.00035616,9]
[327379343,1716030642496,-1026.58,0.00035616,9]
[327379344,1716030642506,-500.0,0.00035616,9]
[327379345,1716030642516,-500.0,0.00035616,9]
[327379346,1716030642525,-500.0,0.00035616,9]
[327379347,1716030642534,-368.91221739,0.00035616,9]
[327379348,1716030642880,-193.17496518,0.00035516,9]
[327379349,1716030642890,-225.16778261,0.00035616,9]
[327379350,1716030642900,-19.28074075,0.00035616,9]
[327379351,1716030643088,-506.77925925,0.00035616,9]
[327379352,1716030643098,-500.0,0.00035616,9]
[327379353,1716030643107,-1445.92,0.00035616,9]
[327379354,1716030643118,-2039.23,0.00035616,9]
[327379355,1716030643127,-500.0,0.00035616,9]
[327379358,1716030643137,-500.0,0.00035616,9]
[327379360,1716030643146,-1886.4,0.00035616,9]
[327379361,1716030643155,-500.0,0.00035616,9]
[327379362,1716030643164,-500.0,0.00035616,9]
[327379364,1716030643173,-420.1022323,0.00035616,9]
[327379401,1716030646176,-231.15116165,0.00035615,4]
[327379403,1716030646186,-500.0,0.00035615,20]
[327379404,1716030646195,-170.8377677,0.00035616,9]
[327379405,1716030646204,-500.0,0.00035616,9]
[327379406,1716030646214,-500.0,0.00035616,9]
[327379407,1716030646223,-227.09092317,0.00035616,9]
[327379408,1716030646232,-2675.45,0.00035616,9]
[327379409,1716030646242,-500.0,0.00035616,9]
[327379410,1716030646251,-500.0,0.00035616,9]
[327379411,1716030646260,-574.35619985,0.00035616,9]
[327379412,1716030646269,-500.0,0.00035616,9]
[327379413,1716030646278,-569.51,0.00035616,9]
[327379414,1716030646288,-500.0,0.00035616,9]
[327379415,1716030646297,-500.0,0.00035616,9]
[327379416,1716030646307,-670.02,0.00035616,9]
[327379417,1716030646316,-500.0,0.00035616,9]
[327379418,1716030646325,-500.0,0.00035616,9]
[327379419,1716030646335,-556.81,0.00035616,9]
[327379420,1716030646345,-500.0,0.00035616,9]
[327379421,1716030646354,-529.34,0.00035616,9]
[327379422,1716030646364,-1555.24,0.00035616,9]
[327379423,1716030646375,-500.0,0.00035616,9]
[327379424,1716030646384,-693.64,0.00035616,9]
[327379425,1716030646394,-500.0,0.00035616,9]
[327379426,1716030646403,-500.0,0.00035616,9]
[327379427,1716030646414,-532.34,0.00035616,9]
[327379428,1716030646427,-532.34,0.00035616,9]
[327379429,1716030646436,-500.0,0.00035616,9]
[327379430,1716030646447,-660.41,0.00035616,9]
[327379431,1716030646456,-656.92,0.00035616,9]
[327379432,1716030646467,-513.78,0.00035616,9]
[327379433,1716030646477,-500.0,0.00035616,9]
[327379434,1716030646486,-1598.89,0.00035616,9]
[327379435,1716030646498,-664.19,0.00035616,9]
[327379436,1716030646508,-920.25,0.00035616,9]
[327379437,1716030646518,-500.0,0.00035616,9]
[327379438,1716030646527,-500.0,0.00035616,9]
[327379439,1716030646537,-500.0,0.00035616,9]
[327379440,1716030646546,-500.0,0.00035616,9]
[327379441,1716030646555,-500.0,0.00035616,9]
[327379442,1716030646565,-995.46,0.00035616,9]
[327379444,1716030646575,-500.0,0.00035616,9]
[327379445,1716030646584,-1087.67,0.00035616,9]
[327379446,1716030646595,-500.0,0.00035616,9]
[327379447,1716030646604,-500.0,0.00035616,9]
[327379448,1716030646615,-500.0,0.00035616,9]
[327379449,1716030646624,-500.0,0.00035616,9]
[327379450,1716030646633,-500.0,0.00035616,9]
[327379451,1716030646643,-607.71184412,0.00035616,9]
[327379452,1716030646652,-500.0,0.00035616,9]
[327379453,1716030646661,-500.0,0.00035616,9]
[327379454,1716030646671,-789.6,0.00035616,9]
[327379455,1716030646681,-790.23,0.00035616,9]
[327379456,1716030646690,-500.0,0.00035616,9]
[327379457,1716030646699,-953.1,0.00035616,9]
[327379458,1716030646709,-500.0,0.00035616,9]
[327379459,1716030646719,-500.0,0.00035616,9]
[327379460,1716030646729,-710.07,0.00035616,9]
[327379461,1716030646738,-2258.02,0.00035616,9]
[327379462,1716030646748,-500.0,0.00035616,9]
[327379463,1716030646758,-500.0,0.00035616,9]
[327379464,1716030646767,-500.0,0.00035616,9]
[327379465,1716030646776,-500.0,0.00035616,9]
[327379466,1716030646786,-500.0,0.00035616,9]
[327379467,1716030646795,-500.0,0.00035616,9]
[327379468,1716030646805,-500.0,0.00035616,9]
[327379469,1716030646814,-500.0,0.00035616,9]
[327379470,1716030646824,-500.0,0.00035616,9]
[327379471,1716030646834,-500.0,0.00035616,9]
[327379472,1716030646843,-500.0,0.00035616,9]
[327379473,1716030646852,-500.0,0.00035616,9]
[327379474,1716030646862,-500.0,0.00035616,9]
[327379475,1716030646872,-500.0,0.00035616,9]
[327379476,1716030646882,-721.06,0.00035616,9]
[327379477,1716030646891,-500.0,0.00035616,9]
[327379478,1716030646901,-626.36,0.00035616,9]
[327379479,1716030646910,-500.0,0.00035616,9]
[327379480,1716030646920,-500.0,0.00035616,9]
[327379481,1716030646929,-500.0,0.00035616,9]
[327379482,1716030646938,-500.0,0.00035616,9]
[327379483,1716030646947,-500.0,0.00035616,9]
[327379484,1716030646956,-500.0,0.00035616,9]
[327379485,1716030646965,-783.63,0.00035616,9]
[327379486,1716030646975,-500.0,0.00035616,9]
[327379487,1716030646985,-500.0,0.00035616,9]
[327379488,1716030646994,-1788.33,0.00035616,9]
[327379489,1716030647003,-500.0,0.00035616,9]
[327379490,1716030647013,-730.93,0.00035616,9]
[327379491,1716030647022,-3291.82,0.00035616,9]
[327379492,1716030647031,-500.0,0.00035616,9]
[327379493,1716030647040,-500.0,0.00035616,9]
[327379494,1716030647050,-500.0,0.00035616,9]
[327379495,1716030647058,-588.85342492,0.00035616,9]
[327379496,1716030647067,-500.0,0.00035616,9]
[327379497,1716030647077,-818.9,0.00035616,9]
[327379498,1716030647086,-560.57,0.00035616,9]
[327379499,1716030647095,-256.46614244,0.00035616,9]
[327379500,1716030647104,-3056.36,0.00035616,9]
[327379501,1716030647113,-1007.94,0.00035616,9]
[327379502,1716030647122,-500.0,0.00035616,9]
[327379503,1716030647131,-500.0,0.00035616,9]
[327379504,1716030647141,-810.99,0.00035616,9]
[327379505,1716030647150,-500.0,0.00035616,9]
[327379506,1716030647159,-460.59553966,0.00035616,9]
[327379507,1716030647168,-500.0,0.00035616,9]
[327379508,1716030647177,-1121.49,0.00035616,9]
[327379509,1716030647187,-500.0,0.00035616,9]
[327379510,1716030647196,-500.0,0.00035616,9]
[327379511,1716030647205,-500.0,0.00035616,9]
[327379512,1716030647215,-500.0,0.00035616,9]
[327379513,1716030647224,-500.0,0.00035616,9]
[327379514,1716030647233,-800.41,0.00035616,9]
[327379515,1716030647242,-500.0,0.00035616,9]
[327379516,1716030647252,-1378.48,0.00035616,9]
[327379517,1716030647261,-637.72,0.00035616,9]
[327379518,1716030647271,-500.0,0.00035616,9]
[327379519,1716030647281,-2542.48,0.00035616,9]
[327379520,1716030647290,-500.0,0.00035616,9]
[327379521,1716030647300,-848.94,0.00035616,9]
[327379522,1716030647309,-648.19,0.00035616,9]
[327379523,1716030647318,-500.0,0.00035616,9]
[327379524,1716030647328,-500.0,0.00035616,9]
[327379525,1716030647337,-500.0,0.00035616,9]
[327379526,1716030647346,-1067.66,0.00035616,9]
[327379527,1716030647356,-712.72,0.00035616,9]
[327379528,1716030647366,-500.0,0.00035616,9]
[327379529,1716030647375,-3532.29,0.00035616,9]
[327379530,1716030647385,-576.68,0.00035616,9]
[327379531,1716030647395,-1069.8,0.00035616,9]
[327379532,1716030647404,-1004.6,0.00035616,9]
[327379533,1716030647415,-500.0,0.00035616,9]
[327379534,1716030647427,-500.0,0.00035616,9]
[327379535,1716030647436,-5148.33,0.00035616,9]
[327379536,1716030647446,-2379.52,0.00035616,9]
[327379537,1716030647457,-645.16,0.00035616,9]
[327379538,1716030647466,-547.38,0.00035616,9]
[327379539,1716030647476,-500.0,0.00035616,9]
[327379540,1716030647486,-500.0,0.00035616,9]
[327379541,1716030647496,-500.0,0.00035616,9]
[327379542,1716030647505,-2286.82,0.00035616,9]
[327379543,1716030647515,-500.0,0.00035616,9]
[327379544,1716030647524,-1420.75,0.00035616,9]
[327379545,1716030647533,-688.35,0.00035616,9]
[327379546,1716030647544,-500.0,0.00035616,9]
[327379547,1716030647553,-740.86,0.00035616,9]
[327379548,1716030647563,-500.0,0.00035616,9]
[327379549,1716030647572,-500.0,0.00035616,9]
[327379550,1716030647582,-512.07,0.00035616,9]
[327379551,1716030647591,-500.0,0.00035616,9]
[327379552,1716030647601,-3512.2,0.00035616,9]
[327379553,1716030647610,-500.0,0.00035616,9]
[327379554,1716030647619,-8065.01,0.00035616,9]
[327379555,1716030647629,-580.36,0.00035616,9]
[327379556,1716030647639,-3395.14,0.00035616,9]
[327379557,1716030647649,-500.0,0.00035616,9]
[327379558,1716030647659,-934.88,0.00035616,9]
[327379559,1716030647668,-500.0,0.00035616,9]
[327379560,1716030647678,-683.51,0.00035616,9]
[327379561,1716030647688,-380.62747238,0.00035616,9]
[327379562,1716030647697,-500.0,0.00035616,9]
[327379563,1716030647707,-623.0,0.00035616,9]
[327379564,1716030647716,-500.0,0.00035616,9]
[327379565,1716030647726,-915.29,0.00035616,2]
[327379566,1716030647736,-500.0,0.00035616,9]
[327379567,1716030647745,-668.22,0.00035616,9]
[327379568,1716030647755,-564.54,0.00035616,9]
[327379569,1716030647764,-500.0,0.00035616,9]
[327379570,1716030647773,-500.0,0.00035616,9]
[327379571,1716030647783,-1280.44,0.00035616,9]
[327379572,1716030647792,-500.0,0.00035616,9]
[327379573,1716030647807,-500.0,0.00035616,9]
[327379574,1716030647820,-2286.41,0.00035616,9]
[327379575,1716030647833,-600.45,0.00035616,9]
[327379576,1716030647846,-508.4303963,0.00035616,9]
[327379577,1716030647857,-602.47,0.00035616,9]
[327379578,1716030647869,-500.0,0.00035616,9]
[327379579,1716030647881,-500.0,0.00035616,9]
[327379580,1716030647893,-572.07,0.00035616,9]
[327379581,1716030647905,-500.0,0.00035616,9]
[327379582,1716030647917,-500.0,0.00035616,9]
[327379583,1716030647929,-505.87,0.00035616,9]
[327379584,1716030647940,-500.0,0.00035616,9]
[327379585,1716030647953,-500.0,0.00035616,9]
[327379586,1716030647967,-500.0,0.00035616,9]
[327379587,1716030647979,-500.0,0.00035616,9]
[327379588,1716030647991,-500.0,0.00035616,9]
[327379589,1716030648002,-500.0,0.00035616,9]
[327379590,1716030648014,-500.0,0.00035616,9]
[327379591,1716030648025,-500.0,0.00035616,9]
[327379592,1716030648037,-543.31,0.00035616,9]
[327379593,1716030648049,-7277.33,0.00035616,9]
[327379594,1716030648060,-3996.91,0.00035616,9]
[327379595,1716030648072,-500.0,0.00035616,9]
[327379596,1716030648083,-500.0,0.00035616,9]
[327379597,1716030648093,-500.0,0.00035616,9]
[327379598,1716030648103,-513.79,0.00035616,9]
[327379599,1716030648115,-500.0,0.00035616,9]
[327379600,1716030648126,-500.0,0.00035616,9]
[327379601,1716030648137,-500.0,0.00035616,9]
[327379602,1716030648149,-500.0,0.00035616,9]
[327379603,1716030648162,-500.0,0.000357,13]
[327379604,1716030648173,-1564.60657979,0.00035722,2]
[327379605,1716030648186,-154.81520747,0.00035784,2]
[327379606,1716030648199,-800.0,0.000358,13]
[327379607,1716030648212,-706.35011166,0.00035888,4]
[327379608,1716030648225,-535.53037562,0.00035888,4]
[327379609,1716030648235,-4426.98574569,0.00035888,4]
[327379610,1716030648245,-3027.17182449,0.00035888,2]
[327379611,1716030648255,-1258.86655938,0.00035888,4]
[327379612,1716030648266,-428.28701049,0.00035888,4]
[327379613,1716030648278,-532.34,0.00035889,9]
[327379614,1716030648291,-532.34,0.00035889,9]
[327379615,1716030648304,-500.0,0.00035889,9]
[327379616,1716030648315,-2295.60278269,0.0003589,4]
[327379617,1716030648326,-401.5009532,0.0003589,4]
[327379618,1716030648337,-13381.99741206,0.0003589,5]
[327379619,1716030648348,-1609.74596226,0.0003589,5]
[327379620,1716030648360,-164.33971255,0.0003589,2]
[327379621,1716030648373,-451.73513898,0.0003589,14]
[327379622,1716030648384,-2000.0,0.0003589,2]
[327379623,1716030648394,-200.0,0.0003589,2]
[327379624,1716030648406,-500.0,0.0003589,9]
[327379625,1716030648420,-500.0,0.0003589,9]
[327379626,1716030648431,-500.0,0.0003589,9]
[327379627,1716030648442,-547.22090435,0.0003589,9]
[327379628,1716030648455,-500.0,0.0003589,9]
[327379629,1716030648466,-500.0,0.0003589,9]
[327379630,1716030648477,-520.89085396,0.0003589,9]
[327379631,1716030648488,-500.0,0.0003589,9]
[327379632,1716030648500,-817.84,0.0003589,9]
[327379633,1716030648510,-500.0,0.0003589,9]
[327379634,1716030648525,-523.82037422,0.0003589,9]
[327379635,1716030648535,-500.0,0.0003589,9]
[327379636,1716030648547,-500.0,0.0003589,9]
[327379637,1716030648558,-500.0,0.0003589,9]
[327379638,1716030648569,-500.0,0.0003589,9]
[327379639,1716030648580,-500.0,0.0003589,9]
[327379640,1716030648591,-500.0,0.0003589,9]
[327379641,1716030648602,-500.0,0.0003589,9]
[327379642,1716030648614,-500.0,0.0003589,9]
[327379643,1716030648625,-500.0,0.0003589,9]
[327379644,1716030648636,-500.0,0.0003589,9]
[327379645,1716030648647,-500.0,0.0003589,9]
[327379646,1716030648658,-500.0,0.0003589,9]
[327379647,1716030648669,-533.65781683,0.0003589,9]
[327379648,1716030648680,-500.0,0.0003589,9]
[327379649,1716030648691,-64.17354756,0.0003589,9]
[327379650,1716030649079,-435.82645244,0.0003589,9]
[327379651,1716030649091,-500.0,0.0003589,9]
[327379652,1716030649102,-79.44171753,0.0003589,9]
[327379653,1716030649125,-420.55828247,0.0003589,9]
[327379654,1716030649136,-158.82546903,0.0003589,9]
[327379655,1716030649149,-341.17453097,0.0003589,9]
[327379656,1716030649159,-500.0,0.0003589,9]
[327379657,1716030649170,-500.0,0.0003589,9]
[327379658,1716030649181,-500.0,0.0003589,9]
[327379659,1716030649192,-500.0,0.0003589,9]
[327379660,1716030649203,-500.0,0.0003589,9]
[327379661,1716030649214,-516.58301829,0.0003589,9]
[327379662,1716030649225,-500.0,0.0003589,9]
[327379663,1716030649236,-500.0,0.0003589,9]
[327379664,1716030649246,-500.0,0.0003589,9]
[327379665,1716030649257,-500.0,0.0003589,9]
[327379666,1716030649268,-500.0,0.0003589,9]
[327379667,1716030649278,-500.0,0.0003589,9]
[327379668,1716030649288,-500.0,0.0003589,9]
[327379669,1716030649299,-500.0,0.0003589,9]
[327379670,1716030649309,-500.0,0.0003589,9]
[327379671,1716030649320,-390.00852359,0.0003589,9]
[327379672,1716030649331,-2000.0,0.0003589,2]
[327379673,1716030649342,-500.0,0.0003589,9]
[327379674,1716030649352,-500.0,0.0003589,9]
[327379675,1716030649363,-500.0,0.0003589,9]
[327379676,1716030649375,-500.0,0.0003589,9]
[327379677,1716030649386,-200.0,0.0003589,2]
[327379678,1716030649396,-500.0,0.0003589,9]
[327379679,1716030649407,-500.0,0.0003589,9]
[327379680,1716030649421,-416.23392715,0.0003589,9]
[327379681,1716030649535,-83.76607285,0.0003589,9]
[327379682,1716030649544,-500.0,0.0003589,9]
[327379683,1716030649554,-500.0,0.0003589,9]
[327379684,1716030649564,-500.0,0.0003589,9]
[327379685,1716030649573,-500.0,0.0003589,9]
[327379686,1716030649583,-329.98392715,0.0003589,9]
[327379687,1716030649595,-170.01607285,0.0003589,9]
[327379688,1716030649604,-500.0,0.0003589,9]
[327379689,1716030649613,-500.0,0.0003589,9]
[327379690,1716030649624,-500.0,0.0003589,9]
[327379691,1716030649633,-500.0,0.0003589,9]
[327379692,1716030649643,-379.96202543,0.0003589,9]
[327379693,1716030649652,-500.0,0.0003589,9]
[327379694,1716030649661,-500.0,0.0003589,9]
[327379695,1716030649670,-500.0,0.0003589,9]
[327379696,1716030649679,-500.0,0.0003589,9]
[327379697,1716030649688,-500.0,0.0003589,9]
[327379698,1716030649697,-500.0,0.0003589,9]
[327379699,1716030649706,-500.0,0.0003589,9]
[327379700,1716030649716,-500.0,0.0003589,9]
[327379701,1716030649725,-500.0,0.0003589,9]
[327379702,1716030649734,-74.42190172,0.0003589,9]
[327379703,1716030649755,-425.57809828,0.0003589,9]
[327379704,1716030649764,-201.73468172,0.0003589,9]
[327379755,1716031831578,-1245.53009067,0.00013772,2]
[327379756,1716031831589,-1204.46990933,0.00013772,2]
[327379757,1716031831602,-1319.092,0.00013772,2]
[327379760,1716031831768,-2646.83673506,0.00013772,2]
[327379761,1716031831781,-2897.89669056,0.00013772,2]
[327379762,1716031831790,-3389.10970596,0.00013772,2]
[327379808,1716031837703,-5293.67677538,0.00013772,2]
[327379810,1716031837713,-939.10970596,0.00013872,2]
[327379813,1716031837723,-158.32,0.00013973,2]
[327379814,1716031837732,-156.0,0.00013973,2]
[327379816,1716031837742,-267.77594492,0.00014998,2]
[327379818,1716031837752,-8673.89018169,0.00015,2]
[327379821,1716031837761,-423.02647658,0.00017153,2]
[327379823,1716031837770,-306.5091332,0.00017259,2]
[327379825,1716031837780,-999.99,0.0001726,2]
[327379827,1716031837790,-180.98401701,0.00019364,2]
[327379829,1716031837799,-212.57640946,0.00027892,2]
[327379830,1716031837809,-152.71,0.00027954,2]
[327379831,1716031837818,-444.5,0.00028296,2]
[327379832,1716031837828,-200.0,0.00029216,2]
[327379834,1716031837839,-6924.72,0.0003,4]
[327379836,1716031837849,-250.0,0.00030254,2]
[327379838,1716031837859,-500.0,0.00031602,2]
[327379840,1716031837868,-1155.0,0.000318,3]
[327379841,1716031837877,-444.5,0.00031833,2]
[327379842,1716031837888,-250.0,0.00031948,2]
[327379843,1716031837898,-2000.0,0.00031948,2]
[327379844,1716031837908,-154.83,0.00032073,120]
[327379845,1716031837918,-250.0,0.00032416,2]
[327379846,1716031837927,-2784.51689329,0.00032416,2]
[327379847,1716031837944,-1228.75697829,0.00032416,2]
[327379848,1716031838050,-19886.72612842,0.00032416,2]
[327379849,1716031838059,-152.71,0.00032733,2]
[327379850,1716031838069,-500.0,0.0003536,2]
[327379851,1716031838079,-444.5,0.0003537,2]
[327379852,1716031838088,-18021.0756,0.00035416,2]
[327379853,1716031838098,-10214.1883,0.00035416,2]
[327379854,1716031838107,-413.1793,0.00035416,2]
[327379855,1716031838117,-11941.8923,0.00035416,2]
[327379856,1716031838126,-222.43,0.0003543,2]
[327379857,1716031838136,-126610.36471163,0.0003544,2]
[327379858,1716031838150,-118389.63528837,0.0003544,2]
[327379859,1716031838159,-2500.0,0.0003544,2]
[327379860,1716031838169,-7372.10376585,0.00035463,5]
[327379861,1716031838179,-222.43,0.00035506,2]
[327379862,1716031838188,-3229.1229,0.00035516,2]
[327379863,1716031838198,-19176.8734,0.00035516,2]
[327379864,1716031838208,-1244.1959,0.00035516,2]
[327379865,1716031838219,-67159.0191,0.00035516,2]
[327379866,1716031838228,-1000.0,0.00035516,2]
[327379867,1716031838237,-841.8204,0.00035516,2]
[327379868,1716031838248,-10000.0,0.00035516,120]
[327379869,1716031838258,-18393.98144727,0.0003554,2]
[327379870,1716031838317,-845.02,0.0003554,2]
[327379871,1716031838329,-378.88143139,0.0003554,2]
[327379949,1716031839903,-444.44444636,0.00032633,2]
[327379950,1716031839914,-5806.3419225,0.0003554,2]
[327379951,1716031839925,-999.04292246,0.000356,30]
[327379952,1716031839936,-200.59740565,0.000356,2]
[327379953,1716031839946,-222.43,0.00035606,2]
[327379954,1716031839956,-165.89183316,0.00035606,2]
[327379955,1716031839967,-14127.58108423,0.00035613,2]
[327379956,1716031839980,-1385.64856306,0.00035614,4]
[327379957,1716031839990,-782.75564836,0.00035615,2]
[327379958,1716031840001,-162.49317773,0.00035615,4]
[327379959,1716031840012,-2361.07475324,0.00035615,4]
[327379960,1716031840023,-762.98484307,0.00035615,14]
[327379961,1716031840033,-500.0,0.00035616,9]
[327379962,1716031840043,-500.0,0.00035616,9]
[327379963,1716031840055,-500.0,0.00035616,9]
[327379964,1716031840065,-500.0,0.00035616,9]
[327379965,1716031840075,-500.0,0.00035616,9]
[327379966,1716031840084,-500.0,0.00035616,9]
[327379967,1716031840095,-500.0,0.00035616,9]
[327379968,1716031840105,-500.0,0.00035616,9]
[327379969,1716031840115,-172.1630408,0.00035616,9]
[327379970,1716031840125,-500.0,0.00035616,9]
[327379971,1716031840135,-500.0,0.00035616,9]
[327379972,1716031840145,-500.0,0.00035616,9]
[327379973,1716031840155,-500.0,0.00035616,9]
[327379974,1716031840165,-500.0,0.00035616,9]
[327379975,1716031840174,-500.0,0.00035616,9]
[327379976,1716031840185,-500.0,0.00035616,9]
[327379977,1716031840196,-500.0,0.00035616,9]
[327379978,1716031840206,-500.0,0.00035616,9]
[327379979,1716031840216,-500.0,0.00035616,9]
[327379980,1716031840226,-500.0,0.00035616,9]
[327379981,1716031840236,-500.0,0.00035616,9]
[327379982,1716031840246,-500.0,0.00035616,9]
[327379983,1716031840257,-500.0,0.00035616,9]
[327379984,1716031840267,-500.0,0.00035616,9]
[327379985,1716031840277,-500.0,0.00035616,9]
[327379986,1716031840287,-500.0,0.00035616,9]
[327379987,1716031840298,-168.17376604,0.00035616,9]
[327379988,1716031840308,-423.91075779,0.00035616,9]
[327379989,1716031840318,-500.0,0.00035616,9]
[327379990,1716031840328,-500.0,0.00035616,9]
[327379991,1716031840339,-500.0,0.00035616,9]
[327379992,1716031840350,-500.0,0.00035616,9]
[327379993,1716031840360,-500.0,0.00035616,9]
[327379994,1716031840370,-500.0,0.00035616,9]
[327379995,1716031840380,-500.0,0.00035616,9]
[327379996,1716031840391,-500.0,0.00035616,9]
[327379997,1716031840401,-500.0,0.00035616,9]
[327379998,1716031840412,-500.0,0.00035616,9]
[327379999,1716031840423,-500.0,0.00035616,9]
[327380000,1716031840433,-500.0,0.00035616,9]
[327380001,1716031840443,-500.0,0.00035616,9]
[327380002,1716031840454,-508.62977805,0.00035616,9]
[327380003,1716031840464,-500.0,0.00035616,9]
[327380004,1716031840475,-500.0,0.00035616,9]
[327380005,1716031840485,-207.15348149,0.00035616,9]
[327380006,1716031840495,-500.0,0.00035616,9]
[327380007,1716031840506,-500.0,0.00035616,9]
[327380008,1716031840518,-500.0,0.00035616,9]
[327380009,1716031840528,-553.13575597,0.00035616,9]
[327380010,1716031840539,-500.0,0.00035616,9]
[327380011,1716031840550,-500.0,0.00035616,9]
[327380012,1716031840559,-500.0,0.00035616,9]
[327380013,1716031840570,-500.0,0.00035616,9]
[327380014,1716031840580,-500.0,0.00035616,9]
[327380015,1716031840590,-500.0,0.00035616,9]
[327380016,1716031840601,-500.0,0.00035616,9]
[327380017,1716031840611,-500.0,0.00035616,9]
[327380018,1716031840621,-500.0,0.00035616,9]
[327380019,1716031840632,-500.0,0.00035616,9]
[327380020,1716031840644,-500.0,0.00035616,9]
[327380021,1716031840655,-500.0,0.00035616,9]
[327380022,1716031840667,-500.0,0.00035616,9]
[327380023,1716031840678,-500.0,0.00035616,9]
[327380024,1716031840690,-500.0,0.00035616,9]
[327380025,1716031840700,-500.0,0.00035616,9]
[327380026,1716031840711,-500.0,0.00035616,9]
[327380027,1716031840723,-500.0,0.00035616,9]
[327380028,1716031840733,-500.0,0.00035616,9]
[327380029,1716031840743,-500.0,0.00035616,9]
[327380030,1716031840754,-537.44242477,0.00035616,9]
[327380031,1716031840765,-500.0,0.00035616,9]
[327380032,1716031840775,-500.0,0.00035616,9]
[327380033,1716031840785,-500.0,0.00035616,9]
[327380034,1716031840796,-500.0,0.00035616,9]
[327380036,1716031840807,-500.0,0.00035616,9]
[327380038,1716031840818,-500.0,0.00035616,9]
[327380040,1716031840828,-500.0,0.00035616,9]
[327380042,1716031840838,-500.0,0.00035616,9]
[327380044,1716031840849,-500.0,0.00035616,9]
[327380046,1716031840859,-500.0,0.00035616,9]
[327380048,1716031840871,-500.0,0.00035616,9]
[327380049,1716031840882,-500.0,0.00035616,9]
[327380051,1716031840893,-500.0,0.00035616,9]
[327380053,1716031840905,-504.38502365,0.00035616,9]
[327380054,1716031840923,-500.0,0.00035616,9]
[327380055,1716031840950,-438.12739477,0.00035616,9]
[327380056,1716031840971,-500.0,0.00035616,9]
[327380057,1716031840983,-500.0,0.00035616,9]
[327380058,1716031840992,-500.0,0.00035616,9]
[327380059,1716031841003,-500.0,0.00035616,9]
[327380060,1716031841014,-513.97517695,0.00035616,9]
[327380061,1716031841024,-500.0,0.00035616,9]
[327380062,1716031841034,-500.0,0.00035616,9]
[327380063,1716031841045,-500.0,0.00035616,9]
[327380064,1716031841055,-500.0,0.00035616,9]
[327380065,1716031841066,-500.0,0.00035616,9]
[327380066,1716031841075,-500.0,0.00035616,9]
[327380067,1716031841085,-500.0,0.00035616,9]
[327380068,1716031841094,-876.81,0.00035616,9]
[327380069,1716031841104,-500.0,0.00035616,9]
[327380070,1716031841114,-500.0,0.00035616,9]
[327380071,1716031841124,-500.0,0.00035616,9]
[327380072,1716031841134,-500.0,0.00035616,9]
[327380073,1716031841144,-500.0,0.00035616,9]